lending/lending_fUSD_20260102
["ID","MTS","AMOUNT","RATE_DAILY","PERIOD"]
[400311365,1767347348183,-150.0,0.00014301,2]
[400311366,1767347348204,-150.0,0.00014301,2]
[400311367,1767347348224,-150.0,0.00014301,2]
[400311368,1767347348245,-146.02874059,0.00014301,2]
[400311383,1767347431459,-701.96,0.00013699,2]
[400311384,1767347431472,-3.97125941,0.00014301,2]
[400311385,1767347431485,-150.0,0.00014301,2]
[400311386,1767347431500,-281.74785881,0.00014318,2]
[400311387,1767347431511,-250.0,0.00014318,2]
[400311388,1767347431521,-600.0,0.00014334,2]
[400311389,1767347431532,-195.0,0.00014368,2]
[400311390,1767347431544,-150.0,0.00014434,2]
[400311391,1767347431556,-429.9710896,0.00014458,2]
[400311392,1767347431567,-1200.0,0.00014564,2]
[400311393,1767347431578,-150.0,0.00014566,2]
[400311394,1767347431590,-150.0,0.00014566,2]
[400311395,1767347431601,-150.0,0.00014566,2]
[400311396,1767347431615,-150.0,0.00014619,2]
[400311397,1767347431627,-150.0,0.00014699,2]
[400311398,1767347431640,-150.0,0.00014831,2]
[400311399,1767347431652,-150.0,0.00014831,2]
[400311400,1767347431663,-150.0,0.00014831,2]
[400311401,1767347431674,-150.0,0.00014937,2]
[400311402,1767347431685,-150.0,0.00014963,2]
[400311403,1767347431697,-347.75704666,0.00015068,2]
[400311404,1767347431708,-917.47976227,0.00015095,2]
[400311405,1767347431723,-282.52023773,0.00015095,2]
[400311406,1767347431735,-150.0,0.00015096,2]
[400311407,1767347431748,-150.0,0.00015096,2]
[400311408,1767347431760,-150.0,0.00015096,2]
[400311409,1767347431772,-244.85528559,0.00015225,2]
[400311410,1767347431785,-55.14471441,0.00015225,2]
[400311411,1767347431798,-1795.85528559,0.00015226,2]
[400311412,1767347431828,-1743.55471441,0.00015226,2]
[400311413,1767347431840,-150.0,0.00015228,2]
[400311414,1767347431851,-150.0,0.00015255,2]
[400311415,1767347431863,-461.42320515,0.00015356,2]
[400311416,1767347431875,-150.0,0.00015361,2]
[400311417,1767347431885,-150.0,0.00015361,2]
[400311418,1767347431897,-150.0,0.00015361,2]
[400311419,1767347431908,-150.0,0.00015493,2]
[400311420,1767347431921,-150.0,0.00015573,2]
[400311421,1767347431932,-2108.98113054,0.00015609,2]
[400311422,1767347431942,-150.0,0.00015626,2]
[400311423,1767347431955,-150.0,0.00015626,2]
[400311424,1767347431967,-150.0,0.00015626,2]
[400311425,1767347431978,-201.85,0.00015651,2]
[400311426,1767347431993,-268.57186094,0.00015666,2]
[400311427,1767347432008,-218.4149583,0.00015666,2]
[400311428,1767347432018,-300.0,0.00015699,2]
[400311429,1767347432030,-2500.0,0.00015732,2]
[400311430,1767347432042,-195.0,0.00015732,2]
[400311431,1767347432055,-600.0,0.00015732,2]
[400311432,1767347432067,-300.0,0.00015732,2]
[400311433,1767347432080,-300.0,0.00015732,2]
[400311434,1767347432091,-250.0,0.00015732,2]
[400311435,1767347432103,-500.0,0.00015732,2]
[400311436,1767347432115,-151.0,0.00015756,2]
[400311437,1767347432129,-150.0,0.00015758,2]
[400311438,1767347432140,-93848.92112764,0.00015759,2]
[400311439,1767347432153,-41300.10451731,0.00015759,2]
[400311440,1767347432165,-13622.35293271,0.00015759,2]
[400311441,1767347432187,-803.92311684,0.00015759,2]
[400311442,1767347432200,-123950.85456874,0.00015759,2]
[400311443,1767347432222,-1091.33504491,0.00015759,2]
[400311444,1767347432239,-666.0,0.00015759,2]
[400311445,1767347432257,-4562.01934014,0.00015759,2]
[400311447,1767347437538,-392.85782781,0.00015758,2]
[400311448,1767347437592,-107.14217219,0.00015758,2]
[400311449,1767347437602,-500.0,0.00015758,2]
[400311450,1767347437612,-184.54881248,0.00015758,2]
[400311451,1767347437625,-500.0,0.00015758,2]
[400311452,1767347437635,-500.0,0.00015758,2]
[400311453,1767347437645,-500.0,0.00015758,2]
[400311454,1767347437654,-117.93412132,0.00015758,2]
[400311455,1767347437666,-382.06587868,0.00015758,2]
[400311456,1767347437675,-500.0,0.00015758,2]
[400311457,1767347437684,-346.5690835,0.00015758,2]
[400311458,1767347437694,-500.0,0.00015758,2]
[400311459,1767347437704,-500.0,0.00015758,2]
[400311460,1767347437713,-500.0,0.00015758,2]
[400311461,1767347437723,-500.0,0.00015758,2]
[400311462,1767347437733,-500.0,0.00015758,2]
[400311463,1767347437742,-500.0,0.00015758,2]
[400311464,1767347437753,-500.0,0.00015758,2]
[400311465,1767347437763,-500.0,0.00015758,2]
[400311466,1767347437772,-500.0,0.00015758,2]
[400311467,1767347437782,-500.0,0.00015758,2]
[400311468,1767347437792,-500.0,0.00015758,2]
[400311469,1767347437802,-500.0,0.00015758,2]
[400311470,1767347437811,-500.0,0.00015758,2]
[400311471,1767347437825,-500.0,0.00015758,2]
[400311472,1767347437834,-500.0,0.00015758,2]
[400311473,1767347437844,-500.0,0.00015758,2]
[400311474,1767347437854,-500.0,0.00015758,2]
[400311475,1767347437865,-500.0,0.00015758,2]
[400311476,1767347437876,-61009.52153884,0.00015759,2]
[400311477,1767347437889,-2123.01700003,0.00015759,2]
[400311478,1767347437907,-628.73244732,0.00015759,2]
[400311482,1767347439558,-1861.54,0.00015759,2]
[400311483,1767347439570,-443.46295089,0.00015759,2]
[400311484,1767347439612,-4138.90053628,0.00015759,2]
[400311485,1767347439624,-2584.14950502,0.00015759,2]
[400311486,1767347439775,-764.92669653,0.00015759,2]
[400311487,1767347439786,-362.2710182,0.00015759,2]
[400311488,1767347439828,-438.65514724,0.00015759,2]
[400311522,1767347443848,-345.0,0.00015759,2]
[400311523,1767347443901,-1048.14658478,0.00015759,2]
[400311524,1767347443913,-260149.94477839,0.00015759,2]
[400311525,1767347443958,-773.11986588,0.00015759,2]
[400311526,1767347443971,-736.67142582,0.00015759,2]
[400311544,1767347445492,-299001.0,0.00015759,2]
[400311547,1767347445505,-6402.076457,0.00015759,2]
[400311552,1767347445547,-19183.69944258,0.00015759,2]
[400311559,1767347445602,-1600.0,0.00015759,2]
[400311561,1767347445615,-6999.75893021,0.00015759,2]
[400311563,1767347445656,-2682.21311622,0.00015759,2]
[400311564,1767347445668,-17996.78052404,0.00015759,2]
[400311565,1767347445700,-260.63,0.00015759,2]
[400311566,1767347445712,-5347.36631166,0.00015759,2]
[400311567,1767347445723,-11135.68440695,0.00015759,2]
[400311568,1767347445734,-2440.826,0.00015759,2]
[400311569,1767347445756,-9696.39466783,0.00015759,2]
[400311570,1767347445766,-151.0,0.00015789,2]
[400311571,1767347445775,-151.0,0.00015789,2]
[400311572,1767347445784,-151.0,0.00015793,2]
[400311573,1767347445795,-151.0,0.00015793,2]
[400311574,1767347445805,-151.0,0.00015798,2]
[400311575,1767347445815,-151.0,0.00015798,2]
[400311576,1767347445824,-151.0,0.00015817,2]
[400311577,1767347445834,-6243.68851065,0.00015875,2]
[400311578,1767347445843,-210.81090803,0.00015885,2]
[400311579,1767347445853,-154.7794896,0.0001589,2]
[400311580,1767347445863,-173.25187342,0.0001589,2]
[400311581,1767347445872,-155.41358229,0.0001589,2]
[400311582,1767347445882,-157.13735341,0.0001589,2]
[400311583,1767347445891,-152.40500512,0.0001589,2]
[400311584,1767347445909,-218.64871025,0.0001589,2]
[400311585,1767347445919,-152.25359739,0.0001589,2]
[400311586,1767347445929,-200.0,0.0001589,2]
[400311587,1767347445939,-200.0,0.0001589,2]
[400311588,1767347445949,-151.0,0.0001589,2]
[400311589,1767347445959,-151.0,0.0001589,2]
[400311590,1767347445968,-151.0,0.0001589,2]
[400311591,1767347445978,-151.0,0.0001589,2]
[400311592,1767347445988,-151.0,0.0001589,2]
[400311593,1767347446002,-151.0,0.0001589,2]
[400311594,1767347446014,-151.0,0.0001589,2]
[400311595,1767347446024,-151.0,0.0001589,2]
[400311596,1767347446033,-151.0,0.0001589,2]
[400311597,1767347446043,-151.0,0.0001589,2]
[400311598,1767347446052,-151.0,0.0001589,2]
[400311599,1767347446061,-200.0,0.0001589,2]
[400311600,1767347446074,-500.0,0.00015899,2]
[400311601,1767347446083,-500.0,0.00015899,2]
[400311602,1767347446093,-500.0,0.00015899,2]
[400311603,1767347446102,-567.14001468,0.00015899,2]
[400311604,1767347446112,-500.0,0.00015899,2]
[400311605,1767347446121,-500.0,0.00015899,2]
[400311606,1767347446131,-500.0,0.00015899,2]
[400311607,1767347446140,-500.0,0.00015899,2]
[400311608,1767347446150,-500.0,0.00015899,2]
[400311609,1767347446159,-500.0,0.00015899,2]
[400311610,1767347446169,-500.0,0.00015899,2]
[400311611,1767347446179,-500.0,0.00015899,2]
[400311612,1767347446188,-444.265,0.00015899,2]
[400311613,1767347446198,-500.0,0.00015899,2]
[400311614,1767347446207,-500.0,0.00015899,2]
[400311615,1767347446216,-500.0,0.00015899,2]
[400311616,1767347446226,-500.0,0.00015899,2]
[400311617,1767347446235,-500.0,0.00015899,2]
[400311618,1767347446244,-500.0,0.00015899,2]
[400311619,1767347446257,-500.0,0.00015899,2]
[400311620,1767347446267,-500.0,0.00015899,2]
[400311621,1767347446277,-500.0,0.00015899,2]
[400311622,1767347446286,-500.0,0.00015899,2]
[400311623,1767347446296,-500.0,0.00015899,2]
[400311624,1767347446309,-595.20438035,0.00015899,2]
[400311625,1767347446319,-500.0,0.00015899,2]
[400311626,1767347446328,-500.0,0.00015899,2]
[400311627,1767347446338,-500.0,0.00015899,2]
[400311628,1767347446347,-500.0,0.00015899,2]
[400311629,1767347446357,-480.0,0.00015947,2]
[400311630,1767347446366,-3539.41,0.00015987,2]
[400311631,1767347446377,-6243.68851065,0.00015989,2]
[400311632,1767347446386,-500.0,0.00016005,2]
[400311633,1767347446396,-151.0,0.00016049,2]
[400311634,1767347446406,-151.0,0.00016049,2]
[400311635,1767347446416,-2.19948644,0.00016087,2]
[400311636,1767347446530,-571.92906993,0.00016087,2]
[400311637,1767347446540,-41.18360573,0.00016087,2]
[400311649,1767348560133,-218.9,0.00012429,2]
[400311650,1767348560152,-250.0,0.00012429,2]
[400311651,1767348560173,-229.87145411,0.00012429,2]
[400311654,1767348631638,-500.90165843,0.00013373,2]
[400311655,1767348631648,-500.83220252,0.00013373,2]
[400311656,1767348631657,-238.4626757,0.00013373,2]
[400311657,1767348631668,-501.9998158,0.00013373,2]
[400311658,1767348631678,-250.0,0.00013671,2]
[400311659,1767348631688,-917.82720147,0.00014078,2]
[400311660,1767348631703,-689.84521891,0.00014078,2]
[400311661,1767348631714,-247.63192671,0.00014304,2]
[400311662,1767348631725,-166.66,0.00014404,2]
[400311663,1767348631735,-1000.0,0.00014639,2]
[400311664,1767348631745,-166.66,0.00014708,2]
[400311665,1767348631758,-609.90361204,0.0001471,2]
[400311666,1767348631769,-302.33857604,0.0001471,2]
[400311667,1767348631783,-2500.0,0.0001471,2]
[400311668,1767348631793,-195.0,0.0001471,2]
[400311669,1767348631802,-196.49,0.00014765,2]
[400311670,1767348631812,-150.0,0.00014812,2]
[400311671,1767348631822,-776.69,0.0001497,2]
[400311672,1767348631831,-166.66,0.00015011,2]
[400311673,1767348631840,-247.6319267,0.00015022,2]
[400311674,1767348631850,-169.33,0.00015092,2]
[400311675,1767348631860,-179.58,0.00015136,2]
[400311676,1767348631870,-166.66,0.00015314,2]
[400311677,1767348631879,-161.06,0.000155,2]
[400311678,1767348631889,-1200.0,0.00015558,2]
[400311679,1767348631898,-684.7274,0.00015559,2]
[400311681,1767348631908,-218.41495829,0.00015567,2]
[400311683,1767348631917,-166.66,0.00015617,2]
[400311685,1767348631927,-300.0,0.00015657,2]
[400311687,1767348631936,-300.0,0.00015657,2]
[400311689,1767348631946,-277.66160141,0.00015658,2]
[400311691,1767348631955,-500.0,0.00015658,2]
[400311694,1767348631968,-224.78786432,0.00015658,2]
[400311697,1767348631978,-364.22680941,0.00015658,2]
[400311700,1767348631987,-367.91999853,0.00015658,2]
[400311703,1767348631997,-500.0,0.00015658,2]
[400311706,1767348632007,-500.0,0.00015658,2]
[400311708,1767348632017,-538.50767594,0.00015658,2]
[400311710,1767348632026,-500.0,0.00015658,2]
[400311712,1767348632035,-500.0,0.00015658,2]
[400311714,1767348632045,-500.0,0.00015658,2]
[400311716,1767348632055,-500.0,0.00015658,2]
[400311718,1767348632064,-418.45488125,0.00015658,2]
[400311720,1767348632073,-500.0,0.00015658,2]
[400311722,1767348632082,-500.0,0.00015658,2]
[400311724,1767348632092,-500.0,0.00015658,2]
[400311726,1767348632101,-500.0,0.00015658,2]
[400311728,1767348632110,-500.0,0.00015658,2]
[400311730,1767348632119,-500.0,0.00015658,2]
[400311732,1767348632129,-872.779,0.00015659,2]
[400311734,1767348632138,-626.8759,0.00015659,2]
[400311736,1767348632148,-2502.447,0.00015659,2]
[400311739,1767348632159,-37011.84997269,0.00015659,2]
[400311741,1767348632171,-797.59445327,0.00015659,2]
[400311743,1767348632182,-1108.44106798,0.00015659,2]
[400311745,1767348632193,-7470.09241215,0.00015659,2]
[400311747,1767348632204,-40366.67504117,0.00015659,2]
[400311750,1767348632222,-1889.44914174,0.00015659,2]
[400311752,1767348632233,-1539.055,0.00015659,2]
[400311755,1767348632252,-1703.53710003,0.00015659,2]
[400311757,1767348632264,-1671.51544629,0.00015659,2]
[400311760,1767348637706,-787.36629238,0.00015659,2]
[400311761,1767348637761,-8568.3,0.00015659,2]
[400311762,1767348637775,-371.95525974,0.00015659,2]
[400311763,1767348637815,-57323.86330018,0.00015659,2]
[400311899,1767348639761,-449.275,0.00015659,2]
[400311922,1767348645817,-354.248635,0.00014808,2]
[400311923,1767348645828,-645.751365,0.00014808,2]
[400311924,1767348645837,-3158.448685,0.00015659,2]
[400311925,1767348645922,-508.31709661,0.00015659,2]
[400311926,1767348646028,-475.8749998,0.00015659,2]
[400311927,1767348646135,-15630.39272714,0.00015659,2]
[400311968,1767348646615,-1134.975,0.00015659,2]
[400311970,1767348646626,-2697.53323038,0.00015659,2]
[400311976,1767348646667,-448.45149999,0.00015659,2]
[400311977,1767348646678,-2650.25235622,0.00015659,2]
[400311978,1767348646775,-10793.33497224,0.00015659,2]
[400311979,1767348646788,-22356.0,0.00015659,2]
[400311980,1767348663944,1797.35,0.00030137,120]
[400311981,1767348854853,150.0,0.00030137,120]
[400311982,1767348866551,4983.46,0.00030137,120]
[400311984,1767349046810,1728.96,0.00030137,120]
[400311985,1767349205855,663.86229,0.0003,120]
[400311986,1767349392753,150.94467319,0.00030137,120]
[400311990,1767349696463,1927.54962802,0.0001,2]
[400311991,1767349698431,390.69500752,7.888e-05,2]
[400311995,1767349717344,14388.01184909,0.0001,2]
[400312013,1767349831798,-247.6319267,0.00013273,2]
[400312014,1767349831808,-300.0,0.00013372,2]
[400312015,1767349831818,-877.0,0.00013372,2]
[400312016,1767349831828,-300.0,0.00013372,2]
[400312017,1767349831837,-244.15684051,0.00013372,2]
[400312018,1767349831846,-489.33204983,0.00013373,2]
[400312019,1767349831856,-163.26156727,0.00013373,2]
[400312020,1767349831866,-21.16761569,0.00013373,2]
[400312021,1767349831898,-286.84445853,0.00013373,2]
[400312022,1767349831907,-371.35437195,0.00013373,2]
[400312023,1767349831918,-130.43799369,0.00013373,2]
[400312024,1767349831929,-169.56200631,0.00013373,2]
[400312025,1767349831940,-284.23642495,0.00013373,2]
[400312026,1767349831971,-49.61367383,0.00013373,2]
[400312027,1767349831981,-500.0,0.00013373,2]
[400312028,1767349831991,-191.93611632,0.00013443,2]
[400312029,1767349832002,-728.91649147,0.00013443,2]
[400312030,1767349832013,-772.64645658,0.00013443,2]
[400312031,1767349832023,-3239.86664511,0.00013533,2]
[400312032,1767349832034,-1500.0,0.0001441,2]
[400312033,1767349832042,-7730.04034876,0.00014475,2]
[400312034,1767349832074,-3096.30824948,0.00014475,2]
[400312035,1767349832086,-2080.74371364,0.00014475,2]
[400312038,1767349837924,-6592.81596375,0.00014475,2]
[400312039,1767349837936,-2187.10172437,0.00014475,2]
[400312040,1767349837945,-2767.18,0.00014594,2]
[400312041,1767349837954,-250.0,0.000146,2]
[400312042,1767349837963,-420.0,0.00014659,2]
[400312043,1767349837972,-378.0,0.00014659,2]
[400312044,1767349837982,-412.42,0.00014757,2]
[400312045,1767349837992,-2620.94350095,0.00014808,2]
[400312046,1767349838003,-379.05649905,0.00014808,2]
[400312047,1767349838013,-999.0,0.00014965,3]
[400312058,1767349838303,-168.42,0.00015122,2]
[400312060,1767349838313,-979.41,0.000152,2]
[400312062,1767349838322,-2767.18,0.00015324,2]
[400312063,1767349838331,-165.89164062,0.00015369,2]
[400312065,1767349838341,-296.54657747,0.00015369,2]
[400312067,1767349838351,-159.82665654,0.00015369,2]
[400312069,1767349838361,-500.0,0.00015369,2]
[400312071,1767349838371,-500.0,0.00015369,2]
[400312074,1767349838380,-500.0,0.00015369,2]
[400312076,1767349838390,-500.0,0.00015369,2]
[400312078,1767349838400,-500.0,0.00015369,2]
[400312080,1767349838409,-305.96050892,0.00015369,2]
[400312082,1767349838420,-500.0,0.00015369,2]
[400312084,1767349838429,-500.0,0.00015369,2]
[400312086,1767349838439,-500.0,0.00015369,2]
[400312088,1767349838448,-154.24653966,0.00015369,2]
[400312090,1767349838458,-1222.64,0.0001537,2]
[400312092,1767349838467,-1222.64,0.0001537,2]
[400312093,1767349838476,-1222.64,0.0001537,2]
[400312094,1767349838486,-1222.64,0.0001537,2]
[400312095,1767349838496,-1222.64,0.0001537,2]
[400312096,1767349838506,-771.86643851,0.0001537,2]
[400312097,1767349838520,-450.77356149,0.0001537,2]
[400312098,1767349838529,-619.71832963,0.0001537,2]
[400312099,1767349838541,-602.92167037,0.0001537,2]
[400312100,1767349838553,-1222.64,0.0001537,2]
[400312101,1767349838563,-350.40421279,0.0001537,2]
[400312102,1767349838579,-872.23578721,0.0001537,2]
[400312103,1767349838588,-1222.64,0.0001537,2]
[400312104,1767349838598,-1222.64,0.0001537,2]
[400312105,1767349838608,-1222.64,0.0001537,2]
[400312106,1767349838617,-1222.64,0.0001537,2]
[400312107,1767349838627,-1195.27717858,0.0001537,2]
[400312108,1767349838639,-27.36282142,0.0001537,2]
[400312109,1767349838648,-1222.64,0.0001537,2]
[400312110,1767349838660,-688.44717842,0.0001537,2]
[400312114,1767349839883,-534.19282158,0.0001537,2]
[400312115,1767349839892,-118.67121039,0.0001537,2]
[400312116,1767349840057,-1103.96878961,0.0001537,2]
[400312117,1767349840067,-1222.64,0.0001537,2]
[400312118,1767349840076,-1222.64,0.000154,2]
[400312119,1767349840086,-1222.64,0.000154,2]
[400312120,1767349840096,-1222.64,0.000154,2]
[400312121,1767349840106,-1222.64,0.000154,2]
[400312122,1767349840116,-1222.64,0.000154,2]
[400312123,1767349840127,-743.49121054,0.000154,2]
[400312124,1767349840138,-479.14878946,0.000154,2]
[400312125,1767349840147,-1222.64,0.000154,2]
[400312126,1767349840157,-151.0,0.00015456,2]
[400312127,1767349840170,-254.95876659,0.00015458,2]
[400312128,1767349840180,-194.36312099,0.00015458,2]
[400312129,1767349840189,-157.35150503,0.00015458,2]
[400312130,1767349840198,-607.54399897,0.00015458,2]
[400312131,1767349840207,-26937.94524891,0.00015459,2]
[400312132,1767349840220,-89900.0,0.00015459,2]
[400312133,1767349840250,-3342.6520794,0.00015459,2]
[400312135,1767349840261,-876.76,0.00015459,2]
[400312163,1767349844098,-2493.71,0.0001537,2]
[400312164,1767349844107,-588.93303911,0.00015459,2]
[400312165,1767349844119,-260.81879073,0.00015459,2]
[400312166,1767349844256,-28.61846301,0.00015459,2]
[400312174,1767349845800,-194.17,0.00015304,2]
[400312175,1767349845809,-210202.30544505,0.00015459,2]
[400312176,1767349845821,-66346.11169507,0.00015459,2]
[400312177,1767349845855,-727.8530006,0.00015459,2]
[400312178,1767349845868,-3555.44,0.00015459,2]
[400312179,1767349845967,-26540.76341721,0.00015459,2]
[400312180,1767349845980,-11917.73796716,0.00015459,2]
[400312181,1767349845992,-297.30999998,0.00015459,2]
[400312182,1767349846003,-313.43480918,0.00015459,2]
[400312216,1767349873237,540.17789761,7.54e-05,2]
[400312217,1767349873262,27.12210239,7.54e-05,2]
[400312218,1767349873436,567.3,7.937e-05,2]
[400312219,1767349873626,567.3,8.333e-05,2]
[400312220,1767349873817,567.3,8.73e-05,2]
[400312221,1767349874029,567.3,9.127e-05,2]
[400312222,1767349874284,567.3,9.524e-05,2]
[400312223,1767349874423,567.3,9.921e-05,2]
[400312224,1767349874640,567.3,0.00010318,2]
[400312225,1767349875523,567.3,0.00010714,2]
[400312229,1767350955133,-567.3,0.00011111,2]
[400312230,1767350955155,-567.3,0.00011508,2]
[400312231,1767350955177,-567.3,0.00011905,2]
[400312232,1767350955197,-244.50226396,0.00012222,2]
[400312238,1767351031945,-387.04510284,0.00012302,2]
[400312239,1767351031957,-180.25489716,0.00012302,2]
[400312240,1767351031967,-567.3,0.00012698,2]
[400312241,1767351031977,-567.3,0.00013095,2]
[400312242,1767351031986,-551.20193634,0.00013373,2]
[400312243,1767351031997,-567.3,0.00013492,2]
[400312244,1767351032007,-666.86,0.00013699,2]
[400312245,1767351032017,-166.66,0.00013746,2]
[400312246,1767351032268,-567.3,0.00013889,2]
[400312247,1767351032279,-166.66,0.00014036,2]
[400312248,1767351032289,-567.3,0.00014286,2]
[400312249,1767351032298,-1200.0,0.00014302,2]
[400312250,1767351032308,-300.0,0.00014302,2]
[400312251,1767351032318,-300.0,0.00014302,2]
[400312252,1767351032328,-300.0,0.00014302,2]
[400312253,1767351032337,-1200.0,0.00014302,2]
[400312254,1767351032347,-200.0,0.00014303,2]
[400312255,1767351032360,-200.0,0.00014303,2]
[400312256,1767351032370,-200.0,0.00014303,2]
[400312257,1767351032379,-151.0,0.00014303,2]
[400312258,1767351032389,-151.0,0.00014303,2]
[400312259,1767351032399,-151.0,0.00014303,2]
[400312260,1767351032408,-151.0,0.00014303,2]
[400312261,1767351032418,-151.0,0.00014303,2]
[400312262,1767351032427,-151.0,0.00014303,2]
[400312263,1767351032438,-151.0,0.00014303,2]
[400312264,1767351032448,-151.0,0.00014303,2]
[400312265,1767351032457,-151.0,0.00014303,2]
[400312266,1767351032466,-151.0,0.00014303,2]
[400312267,1767351032476,-151.0,0.00014303,2]
[400312268,1767351032486,-150.0,0.00014311,2]
[400312269,1767351032496,-6043.45139001,0.00014312,2]
[400312270,1767351032508,-488.41,0.00014312,2]
[400312271,1767351032525,-679.01389268,0.00014312,2]
[400312272,1767351032538,-310.5,0.00014312,2]
[400312273,1767351032551,-494.58814301,0.00014312,2]
[400312274,1767351032563,-853.06165973,0.00014312,2]
[400312275,1767351032575,-889.22490028,0.00014312,2]
[400312276,1767351032805,-8358.6192992,0.00014312,2]
[400312277,1767351032817,-6039.98071509,0.00014312,2]
[400312278,1767351032827,-166.66,0.00014325,2]
[400312279,1767351032836,-150.0,0.00014458,2]
[400312280,1767351032846,-1000.0,0.00014512,2]
[400312281,1767351032855,-7483.2,0.00014512,2]
[400312282,1767351032865,-1222.64,0.00014548,2]
[400312283,1767351032875,-1222.64,0.00014548,2]
[400312284,1767351032885,-1222.64,0.00014548,2]
[400312285,1767351032894,-1477.3,0.00014548,2]
[400312286,1767351032903,-166.66,0.00014614,2]
[400312287,1767351032912,-567.3,0.00014683,2]
[400312288,1767351032922,-1222.64,0.00014778,2]
[400312289,1767351032931,-3000.0,0.00014808,2]
[400312290,1767351032941,-200.0,0.00014851,2]
[400312291,1767351032950,-200.0,0.00014851,2]
[400312292,1767351032960,-166.66,0.00014904,2]
[400312293,1767351032970,-166.68,0.00014955,2]
[400312294,1767351032980,-200.54456707,0.00015075,2]
[400312295,1767351032990,-567.3,0.00015079,2]
[400312296,1767351032999,-474.3,0.00015096,2]
[400312297,1767351033009,-500.0,0.00015193,2]
[400312298,1767351033018,-166.66,0.00015193,2]
[400312299,1767351033028,-257.8886,0.00015259,2]
[400312300,1767351033037,-500.0,0.00015266,2]
[400312301,1767351033046,-256.21783432,0.00015266,2]
[400312302,1767351033060,-500.0,0.00015266,2]
[400312303,1767351033070,-500.0,0.00015266,2]
[400312304,1767351033079,-500.0,0.00015266,2]
[400312305,1767351033088,-500.0,0.00015266,2]
[400312306,1767351033098,-500.0,0.00015266,2]
[400312307,1767351033108,-500.0,0.00015266,2]
[400312308,1767351033118,-500.0,0.00015266,2]
[400312309,1767351033128,-500.0,0.00015266,2]
[400312310,1767351033137,-500.0,0.00015266,2]
[400312311,1767351033147,-500.0,0.00015266,2]
[400312312,1767351033156,-392.45738171,0.00015266,2]
[400312313,1767351033166,-500.0,0.00015266,2]
[400312314,1767351033176,-500.0,0.00015266,2]
[400312315,1767351033185,-500.0,0.00015266,2]
[400312316,1767351033195,-500.0,0.00015266,2]
[400312317,1767351033204,-500.0,0.00015266,2]
[400312318,1767351033214,-500.0,0.00015266,2]
[400312319,1767351033223,-500.0,0.00015266,2]
[400312320,1767351033232,-500.0,0.00015266,2]
[400312321,1767351033242,-827.02,0.00015267,2]
[400312322,1767351033254,-322.6107,0.00015267,2]
[400312323,1767351033264,-250.0,0.00015267,2]
[400312324,1767351033273,-250.0,0.00015267,2]
[400312325,1767351033283,-250.0,0.00015267,2]
[400312326,1767351033292,-250.0,0.00015267,2]
[400312327,1767351033302,-250.0,0.00015267,2]
[400312328,1767351033311,-250.0,0.00015267,2]
[400312329,1767351033320,-250.0,0.00015267,2]
[400312330,1767351033330,-250.0,0.00015267,2]
[400312331,1767351033340,-250.0,0.00015267,2]
[400312332,1767351033350,-250.0,0.00015267,2]
[400312333,1767351033359,-250.0,0.00015267,2]
[400312334,1767351033369,-250.0,0.00015267,2]
[400312335,1767351033380,-250.0,0.00015267,2]
[400312336,1767351033390,-250.0,0.00015267,2]
[400312337,1767351033399,-250.0,0.00015267,2]
[400312338,1767351033408,-250.0,0.00015267,2]
[400312339,1767351033418,-250.0,0.00015267,2]